[Event "Early-Titled-Tuesday-Blitz-October-10-2023"]
[Site "Chess.com"]
[Date "2023.10.10"]
[Round "2"]
[White "scarabee43"]
[Black "ArmanGhevondyanchess"]
[Result "0-1"]
[WhiteElo "2789"]
[BlackElo "2570"]
[TimeControl "180+1"]
[EndTime "8:17:53 PDT"]
[Termination "ArmanGhevondyanchess won by checkmate"]

1. Nf3 {[%clk 0:03:00.9]} 1... Nf6 {[%clk 0:02:59.9]} 2. e3 {[%clk 0:03:01]}
2... g6 {[%clk 0:03:00.4]} 3. d4 {[%clk 0:03:01]} 3... Bg7 {[%clk 0:03:01.1]} 4.
c4 {[%clk 0:03:01.2]} 4... O-O {[%clk 0:03:01.8]} 5. Nc3 {[%clk 0:03:01.4]} 5...
d5 {[%clk 0:03:01.9]} 6. cxd5 {[%clk 0:03:01.2]} 6... Nxd5 {[%clk 0:03:02.4]} 7.
Be2 {[%clk 0:03:01.5]} 7... c5 {[%clk 0:03:02.2]} 8. O-O {[%clk 0:03:01.5]} 8...
Nc6 {[%clk 0:03:02.1]} 9. Qd2 {[%clk 0:02:48.6]} 9... cxd4 {[%clk 0:02:56.6]}
10. exd4 {[%clk 0:02:48.4]} 10... b6 {[%clk 0:02:53]} 11. Rd1 {[%clk 0:02:47.5]}
11... Bb7 {[%clk 0:02:52.4]} 12. Qg5 {[%clk 0:02:43.9]} 12... e6 {[%clk
0:02:48.6]} 13. Nxd5 {[%clk 0:02:42.7]} 13... Qxd5 {[%clk 0:02:38.5]} 14. Qxd5
{[%clk 0:02:42.2]} 14... exd5 {[%clk 0:02:39.4]} 15. Be3 {[%clk 0:02:40.5]}
15... Rac8 {[%clk 0:02:35.9]} 16. Rac1 {[%clk 0:02:40.1]} 16... h6 {[%clk
0:02:04.3]} 17. a3 {[%clk 0:02:24]} 17... Na5 {[%clk 0:01:57.9]} 18. Ne5 {[%clk
0:02:22.8]} 18... Nb3 {[%clk 0:01:48.1]} 19. Rb1 {[%clk 0:02:19.1]} 19... Rfe8
{[%clk 0:01:39.1]} 20. Bb5 {[%clk 0:02:16.4]} 20... Re7 {[%clk 0:01:35.7]} 21.
Ba4 {[%clk 0:02:13.8]} 21... Nxd4 {[%clk 0:01:31.2]} 22. Nxg6 {[%clk 0:02:08]}
22... Ne2+ {[%clk 0:01:28.1]} 23. Kf1 {[%clk 0:02:06.4]} 23... fxg6 {[%clk
0:01:28.3]} 24. Bb5 {[%clk 0:01:57.3]} 24... d4 {[%clk 0:01:19.8]} 25. Bd2
{[%clk 0:01:55.9]} 25... d3 {[%clk 0:01:15.5]} 26. Bxd3 {[%clk 0:01:46.9]} 26...
Nd4 {[%clk 0:01:14.4]} 27. Bxg6 {[%clk 0:01:47.5]} 27... Rc6 {[%clk 0:01:00.1]}
28. Bd3 {[%clk 0:01:42.3]} 28... Kh8 {[%clk 0:00:58.7]} 29. Bb4 {[%clk
0:01:41.2]} 29... Rf7 {[%clk 0:00:55.3]} 30. Be4 {[%clk 0:01:36.1]} 30... Rcf6
{[%clk 0:00:44.8]} 31. Bxb7 {[%clk 0:01:08.5]} 31... Rxf2+ {[%clk 0:00:44.2]}
32. Kg1 {[%clk 0:01:09.1]} 32... Ne2+ {[%clk 0:00:44.5]} 33. Kh1 {[%clk
0:01:09.5]} 33... Rxb7 {[%clk 0:00:45]} 34. h3 {[%clk 0:01:00.9]} 34... Be5
{[%clk 0:00:40.3]} 35. Rd8+ {[%clk 0:00:57.9]} 35... Kg7 {[%clk 0:00:36.3]} 36.
Re8 {[%clk 0:00:57.1]} 36... Bg3 {[%clk 0:00:27.8]} 37. Re1 {[%clk 0:00:51.8]}
37... Rbf7 {[%clk 0:00:25.5]} 38. Re7 {[%clk 0:00:42.2]} 38... Rxe7 {[%clk
0:00:18.7]} 39. Bxe7 {[%clk 0:00:42.8]} 39... Kg6 {[%clk 0:00:18.3]} 40. Bb4
{[%clk 0:00:41.1]} 40... Kf5 {[%clk 0:00:17.5]} 41. Bd2 {[%clk 0:00:39.2]} 41...
Ke4 {[%clk 0:00:15.2]} 42. Bxh6 {[%clk 0:00:38.5]} 42... Kd3 {[%clk 0:00:15.8]}
43. Bg5 {[%clk 0:00:35.7]} 43... Rf5 {[%clk 0:00:12.2]} 44. Rd1+ {[%clk
0:00:34.4]} 44... Kc2 {[%clk 0:00:12.7]} 45. Rd2+ {[%clk 0:00:34.8]} 45... Kb3
{[%clk 0:00:12.9]} 46. Rd3+ {[%clk 0:00:25.8]} 46... Ka2 {[%clk 0:00:12.8]} 47.
Rf3 {[%clk 0:00:23.6]} 47... Rxg5 {[%clk 0:00:12.3]} 48. Re3 {[%clk 0:00:23.8]}
48... Rf5 {[%clk 0:00:10.2]} 49. Rxe2 {[%clk 0:00:22.3]} 49... Rf1# {[%clk
0:00:10.2]} 0-1

[Event "Early-Titled-Tuesday-Blitz-October-10-2023"]
[Site "Chess.com"]
[Date "2023.10.10"]
[Round "2"]
[White "BocharovD"]
[Black "karwowskikacper"]
[Result "1-0"]
[WhiteElo "2754"]
[BlackElo "2537"]
[TimeControl "180+1"]
[EndTime "8:17:53 PDT"]
[Termination "BocharovD won on time"]

1. Nf3 {[%clk 0:03:00.9]} 1... Nf6 {[%clk 0:02:55.8]} 2. g3 {[%clk 0:03:01]}
2... d5 {[%clk 0:02:53.3]} 3. Bg2 {[%clk 0:03:01]} 3... e6 {[%clk 0:02:53.4]} 4.
O-O {[%clk 0:03:00.5]} 4... Be7 {[%clk 0:02:53.9]} 5. d3 {[%clk 0:03:00.8]} 5...
O-O {[%clk 0:02:53.7]} 6. c4 {[%clk 0:02:58.1]} 6... dxc4 {[%clk 0:02:51.4]} 7.
dxc4 {[%clk 0:02:55.9]} 7... Qxd1 {[%clk 0:02:50.8]} 8. Rxd1 {[%clk 0:02:55.4]}
8... Nc6 {[%clk 0:02:51.4]} 9. Bf4 {[%clk 0:02:55.4]} 9... Ne8 {[%clk
0:02:31.8]} 10. Nc3 {[%clk 0:02:51.2]} 10... a6 {[%clk 0:02:25.5]} 11. Rac1
{[%clk 0:02:42.4]} 11... f6 {[%clk 0:02:15.9]} 12. Be3 {[%clk 0:02:32]} 12...
Bb4 {[%clk 0:02:04.3]} 13. Ne4 {[%clk 0:02:24.6]} 13... e5 {[%clk 0:01:54.1]}
14. a3 {[%clk 0:02:15.7]} 14... Be7 {[%clk 0:01:52.7]} 15. b4 {[%clk 0:02:15.3]}
15... Be6 {[%clk 0:01:47.1]} 16. Bc5 {[%clk 0:02:10.2]} 16... Rf7 {[%clk
0:01:33.6]} 17. Bxe7 {[%clk 0:02:07.3]} 17... Rxe7 {[%clk 0:01:34.5]} 18. Nc5
{[%clk 0:02:07.4]} 18... Nd8 {[%clk 0:01:04.4]} 19. Nd2 {[%clk 0:02:01.7]} 19...
c6 {[%clk 0:01:03.3]} 20. Ndb3 {[%clk 0:01:59.3]} 20... Bg4 {[%clk 0:00:51]} 21.
Rd2 {[%clk 0:01:51.2]} 21... Ne6 {[%clk 0:00:50.7]} 22. Nxb7 {[%clk 0:01:48.3]}
22... Rxb7 {[%clk 0:00:47.5]} 23. Bxc6 {[%clk 0:01:48.7]} 23... Rab8 {[%clk
0:00:43.9]} 24. Bxb7 {[%clk 0:01:46.6]} 24... Rxb7 {[%clk 0:00:44.8]} 25. f3
{[%clk 0:01:44.5]} 25... Bh5 {[%clk 0:00:44.1]} 26. Na5 {[%clk 0:01:40.4]} 26...
Rc7 {[%clk 0:00:39]} 27. Kf2 {[%clk 0:01:37]} 27... Nd4 {[%clk 0:00:32.6]} 28.
g4 {[%clk 0:01:31.8]} 28... Bf7 {[%clk 0:00:32.5]} 29. e3 {[%clk 0:01:31.6]}
29... Nc6 {[%clk 0:00:31.4]} 30. Nb3 {[%clk 0:01:20]} 30... e4 {[%clk
0:00:21.4]} 31. f4 {[%clk 0:01:18.6]} 31... h5 {[%clk 0:00:16.6]} 32. h3 {[%clk
0:01:17.6]} 32... hxg4 {[%clk 0:00:17.2]} 33. hxg4 {[%clk 0:01:18.5]} 33... Ne7
{[%clk 0:00:12.9]} 34. Nc5 {[%clk 0:01:12.1]} 34... a5 {[%clk 0:00:12.8]} 35.
Rd7 {[%clk 0:00:47.4]} 35... Rxd7 {[%clk 0:00:12.9]} 36. Nxd7 {[%clk 0:00:46.6]}
36... axb4 {[%clk 0:00:13.8]} 37. axb4 {[%clk 0:00:44.6]} 37... Nc6 {[%clk
0:00:14.7]} 38. b5 {[%clk 0:00:44.8]} 38... Na5 {[%clk 0:00:15.3]} 39. c5 {[%clk
0:00:41.3]} 39... Nb3 {[%clk 0:00:11.8]} 40. Rc3 {[%clk 0:00:39.5]} 40... Be6
{[%clk 0:00:07.8]} 41. c6 {[%clk 0:00:37.4]} 41... Na5 {[%clk 0:00:03.5]} 42. b6
{[%clk 0:00:36.3]} 42... Nxc6 {[%clk 0:00:02.3]} 43. Rxc6 {[%clk 0:00:35.8]}
43... Bxd7 {[%clk 0:00:03.2]} 44. Rc5 {[%clk 0:00:33.5]} 44... Nd6 {[%clk
0:00:01.9]} 45. Rd5 {[%clk 0:00:33.6]} 1-0

[Event "Early-Titled-Tuesday-Blitz-October-10-2023"]
[Site "Chess.com"]
[Date "2023.10.10"]
[Round "2"]
[White "ylr5000"]
[Black "attack2mateU"]
[Result "0-1"]
[WhiteElo "2469"]
[BlackElo "2714"]
[TimeControl "180+1"]
[EndTime "8:17:55 PDT"]
[Termination "attack2mateU won on time"]

1. d4 {[%clk 0:03:00.9]} 1... Nf6 {[%clk 0:02:59.3]} 2. Nf3 {[%clk 0:02:58]}
2... g6 {[%clk 0:02:56.5]} 3. g3 {[%clk 0:02:58.2]} 3... Bg7 {[%clk 0:02:55]} 4.
Bg2 {[%clk 0:02:59.1]} 4... O-O {[%clk 0:02:54.2]} 5. O-O {[%clk 0:02:59.8]}
5... d5 {[%clk 0:02:52.3]} 6. c4 {[%clk 0:02:59.8]} 6... dxc4 {[%clk 0:02:53.2]}
7. Na3 {[%clk 0:02:59.8]} 7... c3 {[%clk 0:02:52.7]} 8. bxc3 {[%clk 0:02:59.7]}
8... c5 {[%clk 0:02:53.5]} 9. e3 {[%clk 0:02:53.4]} 9... Nc6 {[%clk 0:02:53.2]}
10. Nc4 {[%clk 0:02:51.5]} 10... Be6 {[%clk 0:01:53.7]} 11. Nce5 {[%clk
0:02:49.8]} 11... Bd5 {[%clk 0:01:40.9]} 12. Nxc6 {[%clk 0:02:38.3]} 12... Bxc6
{[%clk 0:01:41.8]} 13. Ba3 {[%clk 0:02:38.4]} 13... Ne4 {[%clk 0:01:35]} 14. Qb3
{[%clk 0:02:38.5]} 14... Qb6 {[%clk 0:01:12.5]} 15. Rac1 {[%clk 0:02:27.7]}
15... Rfd8 {[%clk 0:01:03.5]} 16. Rfd1 {[%clk 0:02:24.5]} 16... Qa5 {[%clk
0:00:58.5]} 17. Qb2 {[%clk 0:02:07]} 17... b5 {[%clk 0:00:51.3]} 18. Nd2 {[%clk
0:02:00.5]} 18... Nxd2 {[%clk 0:00:50]} 19. Rxd2 {[%clk 0:01:48.4]} 19... Bxg2
{[%clk 0:00:48.8]} 20. Kxg2 {[%clk 0:01:49.3]} 20... cxd4 {[%clk 0:00:21.2]} 21.
cxd4 {[%clk 0:01:47.3]} 21... e6 {[%clk 0:00:20.6]} 22. Rdc2 {[%clk 0:01:45.7]}
22... Qb6 {[%clk 0:00:16.4]} 23. Kg1 {[%clk 0:01:12.4]} 23... a5 {[%clk
0:00:16.1]} 24. Rc6 {[%clk 0:01:11.9]} 24... Qb8 {[%clk 0:00:16.3]} 25. Be7
{[%clk 0:01:08.4]} 25... Rd7 {[%clk 0:00:12.9]} 26. Bg5 {[%clk 0:00:46.5]} 26...
h6 {[%clk 0:00:12.6]} 27. Bf4 {[%clk 0:00:46.7]} 27... Qb7 {[%clk 0:00:13.1]}
28. Rc7 {[%clk 0:00:46.2]} 28... Rxc7 {[%clk 0:00:13.5]} 29. Rxc7 {[%clk
0:00:46.6]} 29... Qd5 {[%clk 0:00:14.2]} 30. Qc2 {[%clk 0:00:41.4]} 30... g5
{[%clk 0:00:12.2]} 31. Rc5 {[%clk 0:00:39.7]} 31... Qf3 {[%clk 0:00:10.7]} 32.
Bd6 {[%clk 0:00:39.3]} 32... b4 {[%clk 0:00:09.1]} 33. Rc7 {[%clk 0:00:20.5]}
33... Rd8 {[%clk 0:00:06.8]} 34. Be7 {[%clk 0:00:19.8]} 34... Re8 {[%clk
0:00:06.7]} 35. Ra7 {[%clk 0:00:11.6]} 35... Qd5 {[%clk 0:00:07]} 36. h3 {[%clk
0:00:09.1]} 36... Qb5 {[%clk 0:00:04.3]} 37. Qc5 {[%clk 0:00:07.5]} 37... Qe2
{[%clk 0:00:02.9]} 38. Qc7 {[%clk 0:00:05]} 38... Qxa2 {[%clk 0:00:02.2]} 39.
Bxg5 {[%clk 0:00:05.1]} 39... e5 {[%clk 0:00:02.2]} 0-1

[Event "Early-Titled-Tuesday-Blitz-October-10-2023"]
[Site "Chess.com"]
[Date "2023.10.10"]
[Round "2"]
[White "Ramosha"]
[Black "Anton_Demchenko"]
[Result "0-1"]
[WhiteElo "2626"]
[BlackElo "3016"]
[TimeControl "180+1"]
[EndTime "8:17:58 PDT"]
[Termination "Anton_Demchenko won by resignation"]

1. e4 {[%clk 0:03:00.9]} 1... e5 {[%clk 0:02:59.7]} 2. Nf3 {[%clk 0:03:01.5]}
2... Nc6 {[%clk 0:03:00.2]} 3. Bb5 {[%clk 0:03:01]} 3... a6 {[%clk 0:03:00.2]}
4. Ba4 {[%clk 0:03:01.2]} 4... Nge7 {[%clk 0:03:00.7]} 5. O-O {[%clk 0:03:01.3]}
5... Ng6 {[%clk 0:03:00.7]} 6. c3 {[%clk 0:03:00.6]} 6... d6 {[%clk 0:03:00.6]}
7. d4 {[%clk 0:03:00.8]} 7... Bd7 {[%clk 0:03:01.3]} 8. Re1 {[%clk 0:02:58.8]}
8... Be7 {[%clk 0:03:01.1]} 9. Nbd2 {[%clk 0:02:59.1]} 9... O-O {[%clk
0:03:01.3]} 10. Nf1 {[%clk 0:02:59.8]} 10... b5 {[%clk 0:03:01.6]} 11. Bc2
{[%clk 0:02:59.7]} 11... exd4 {[%clk 0:03:02.2]} 12. cxd4 {[%clk 0:02:59.7]}
12... Bg4 {[%clk 0:02:58.1]} 13. Be3 {[%clk 0:02:58.8]} 13... Nh4 {[%clk
0:02:54.3]} 14. Rc1 {[%clk 0:02:41.8]} 14... Bf6 {[%clk 0:02:48.7]} 15. e5
{[%clk 0:02:06.2]} 15... dxe5 {[%clk 0:02:46.7]} 16. Bxh7+ {[%clk 0:02:06.4]}
16... Kxh7 {[%clk 0:02:29.1]} 17. Qc2+ {[%clk 0:02:03.8]} 17... Kg8 {[%clk
0:02:03.1]} 18. Qxc6 {[%clk 0:02:03.8]} 18... Bxf3 {[%clk 0:02:00.6]} 19. gxf3
{[%clk 0:02:03]} 19... exd4 {[%clk 0:02:01.3]} 20. Bf4 {[%clk 0:02:02.4]} 20...
Qc8 {[%clk 0:01:36.4]} 21. Bg3 {[%clk 0:01:55.4]} 21... Qh3 {[%clk 0:01:31.3]}
22. Bxh4 {[%clk 0:01:54.4]} 22... Qxh4 {[%clk 0:01:27.8]} 23. Qxc7 {[%clk
0:01:51]} 23... d3 {[%clk 0:01:22.6]} 24. Rcd1 {[%clk 0:01:41.5]} 24... Rfd8
{[%clk 0:01:17.2]} 25. Re3 {[%clk 0:01:39.3]} 25... Qc4 {[%clk 0:01:13]} 26. Qb7
{[%clk 0:01:32.7]} 26... Rab8 {[%clk 0:00:56.6]} 27. Qe4 {[%clk 0:01:28.7]}
27... Qxa2 {[%clk 0:00:51.3]} 28. Rexd3 {[%clk 0:01:26.1]} 28... Rxd3 {[%clk
0:00:51.3]} 29. Rxd3 {[%clk 0:01:27]} 29... Qxb2 {[%clk 0:00:46.4]} 30. Ng3
{[%clk 0:01:20.3]} 30... Qe5 {[%clk 0:00:43]} 31. Qc6 {[%clk 0:01:20.1]} 31...
b4 {[%clk 0:00:40.4]} 32. Qc4 {[%clk 0:01:00.3]} 32... Qe6 {[%clk 0:00:38.1]}
33. Qc1 {[%clk 0:00:46.4]} 33... b3 {[%clk 0:00:35.8]} 34. Ne4 {[%clk
0:00:46.6]} 34... b2 {[%clk 0:00:34.9]} 35. Qb1 {[%clk 0:00:46.8]} 35... Be5
{[%clk 0:00:29.5]} 36. Rd2 {[%clk 0:00:39.8]} 36... Rc8 {[%clk 0:00:24]} 37. Rd1
{[%clk 0:00:37.3]} 37... Qg6+ {[%clk 0:00:21.4]} 38. Kf1 {[%clk 0:00:35.4]}
38... Qf5 {[%clk 0:00:18.4]} 39. Ke2 {[%clk 0:00:34.3]} 39... Qf4 {[%clk
0:00:18]} 40. Qd3 {[%clk 0:00:30.8]} 40... g6 {[%clk 0:00:15.7]} 41. Qxa6 {[%clk
0:00:15.5]} 41... Rc2+ {[%clk 0:00:14.5]} 42. Kf1 {[%clk 0:00:16]} 42... Rc1
{[%clk 0:00:15]} 43. Qd3 {[%clk 0:00:09.7]} 43... b1=Q {[%clk 0:00:13.4]} 44.
Qxb1 {[%clk 0:00:09.7]} 44... Rxb1 {[%clk 0:00:14.1]} 45. Rxb1 {[%clk
0:00:10.6]} 45... Qxf3 {[%clk 0:00:14.1]} 0-1

[Event "Early-Titled-Tuesday-Blitz-October-10-2023"]
[Site "Chess.com"]
[Date "2023.10.10"]
[Round "2"]
[White "Ajedrez_con_German"]
[Black "Jojo_898"]
[Result "0-1"]
[WhiteElo "2608"]
[BlackElo "2383"]
[TimeControl "180+1"]
[EndTime "8:18:02 PDT"]
[Termination "Jojo_898 won on time"]

1. Nf3 {[%clk 0:02:56.6]} 1... Nf6 {[%clk 0:02:59.4]} 2. e3 {[%clk 0:02:54.2]}
2... g6 {[%clk 0:02:56.7]} 3. b3 {[%clk 0:02:47.3]} 3... Bg7 {[%clk 0:02:56.6]}
4. Bb2 {[%clk 0:02:47.1]} 4... O-O {[%clk 0:02:56.6]} 5. Be2 {[%clk 0:02:47.1]}
5... d6 {[%clk 0:02:56.6]} 6. d4 {[%clk 0:02:45.8]} 6... Nbd7 {[%clk 0:02:56.6]}
7. O-O {[%clk 0:02:44.6]} 7... e5 {[%clk 0:02:56.4]} 8. dxe5 {[%clk 0:02:43.8]}
8... Ng4 {[%clk 0:02:56.1]} 9. c4 {[%clk 0:02:42.8]} 9... Ngxe5 {[%clk
0:02:54.7]} 10. Nc3 {[%clk 0:02:41.9]} 10... Nxf3+ {[%clk 0:02:52]} 11. Bxf3
{[%clk 0:02:40.9]} 11... Ne5 {[%clk 0:02:52]} 12. Be2 {[%clk 0:02:39.3]} 12...
Bd7 {[%clk 0:02:50.6]} 13. Qd2 {[%clk 0:02:38.8]} 13... Bc6 {[%clk 0:02:49.7]}
14. Rad1 {[%clk 0:02:34]} 14... Qg5 {[%clk 0:02:46.1]} 15. Nd5 {[%clk
0:02:31.1]} 15... Qd8 {[%clk 0:02:35.3]} 16. f4 {[%clk 0:02:27.9]} 16... Nd7
{[%clk 0:02:30.5]} 17. Bxg7 {[%clk 0:02:13]} 17... Kxg7 {[%clk 0:02:27.1]} 18.
Qc3+ {[%clk 0:02:12.8]} 18... f6 {[%clk 0:02:26.7]} 19. Bf3 {[%clk 0:02:07.2]}
19... Bxd5 {[%clk 0:02:04.7]} 20. cxd5 {[%clk 0:01:45.2]} 20... Nb6 {[%clk
0:01:57.9]} 21. Rc1 {[%clk 0:01:41.4]} 21... Rf7 {[%clk 0:01:57.5]} 22. Rc2
{[%clk 0:01:37.7]} 22... Qe7 {[%clk 0:01:56.2]} 23. Rfc1 {[%clk 0:01:33.1]}
23... Re8 {[%clk 0:01:54.4]} 24. Kf2 {[%clk 0:01:32.9]} 24... Qf8 {[%clk
0:01:42.1]} 25. Qd4 {[%clk 0:01:32.5]} 25... Rd7 {[%clk 0:01:18.9]} 26. Rxc7
{[%clk 0:01:25.1]} 26... Qe7 {[%clk 0:01:18.8]} 27. Rxd7 {[%clk 0:01:22.4]}
27... Qxd7 {[%clk 0:01:18.8]} 28. h3 {[%clk 0:01:21.7]} 28... Re7 {[%clk
0:01:15.8]} 29. Bg4 {[%clk 0:01:16.6]} 29... Qb5 {[%clk 0:01:14.9]} 30. Be6
{[%clk 0:01:16.3]} 30... Qa5 {[%clk 0:01:14.6]} 31. Rc2 {[%clk 0:01:12.5]} 31...
Nd7 {[%clk 0:01:06.8]} 32. Rc8 {[%clk 0:00:38]} 32... Qxa2+ {[%clk 0:00:52.8]}
33. Kg3 {[%clk 0:00:37.7]} 33... Qxb3 {[%clk 0:00:45.4]} 34. Rg8+ {[%clk
0:00:18.6]} 34... Kh6 {[%clk 0:00:44.7]} 35. Bxd7 {[%clk 0:00:18.4]} 35... Rxd7
{[%clk 0:00:27.5]} 36. Qxf6 {[%clk 0:00:17.8]} 36... Qxe3+ {[%clk 0:00:27.4]}
37. Kh2 {[%clk 0:00:17.9]} 37... Qe7 {[%clk 0:00:28.1]} 38. Qd4 {[%clk
0:00:08.2]} 38... Qf7 {[%clk 0:00:24.6]} 39. Rb8 {[%clk 0:00:07.6]} 39... Qf5
{[%clk 0:00:21.9]} 40. Qe3 {[%clk 0:00:07.3]} 40... Rf7 {[%clk 0:00:21.5]} 41.
g3 {[%clk 0:00:05.3]} 41... Kg7 {[%clk 0:00:15.5]} 42. Rf8 {[%clk 0:00:04.7]}
42... Rxf8 {[%clk 0:00:15.1]} 0-1

[Event "Early-Titled-Tuesday-Blitz-October-10-2023"]
[Site "Chess.com"]
[Date "2023.10.10"]
[Round "2"]
[White "Grandmaster1369"]
[Black "bazar-wokzal"]
[Result "1-0"]
[WhiteElo "2810"]
[BlackElo "2559"]
[TimeControl "180+1"]
[EndTime "8:18:03 PDT"]
[Termination "Grandmaster1369 won on time"]

1. e4 {[%clk 0:02:59.8]} 1... Nc6 {[%clk 0:02:58]} 2. Nc3 {[%clk 0:02:58.2]}
2... Nf6 {[%clk 0:02:57.3]} 3. d4 {[%clk 0:02:56.5]} 3... d5 {[%clk 0:02:57]} 4.
e5 {[%clk 0:02:54.4]} 4... Nd7 {[%clk 0:02:57.2]} 5. f4 {[%clk 0:02:35.8]} 5...
Nb6 {[%clk 0:02:57.1]} 6. Be3 {[%clk 0:02:34]} 6... Bf5 {[%clk 0:02:54.3]} 7.
Bd3 {[%clk 0:02:34.5]} 7... Qd7 {[%clk 0:02:53.6]} 8. Nf3 {[%clk 0:02:33.3]}
8... Nb4 {[%clk 0:02:49.3]} 9. Bxf5 {[%clk 0:02:29.2]} 9... Qxf5 {[%clk
0:02:48.8]} 10. Rc1 {[%clk 0:01:52.9]} 10... Nc4 {[%clk 0:02:47]} 11. Bf2 {[%clk
0:01:52.7]} 11... Nxb2 {[%clk 0:02:41.7]} 12. Qe2 {[%clk 0:01:53.2]} 12... Nc4
{[%clk 0:02:01.3]} 13. O-O {[%clk 0:01:50.9]} 13... c6 {[%clk 0:01:41.5]} 14.
Bg3 {[%clk 0:01:43.1]} 14... Qd7 {[%clk 0:01:30.5]} 15. Nh4 {[%clk 0:01:22.9]}
15... e6 {[%clk 0:01:29]} 16. f5 {[%clk 0:01:23.3]} 16... O-O-O {[%clk
0:01:20.1]} 17. Rb1 {[%clk 0:01:14.6]} 17... c5 {[%clk 0:01:17.1]} 18. fxe6
{[%clk 0:01:12.2]} 18... fxe6 {[%clk 0:01:16.1]} 19. dxc5 {[%clk 0:01:10.3]}
19... Bxc5+ {[%clk 0:01:15.3]} 20. Kh1 {[%clk 0:01:11]} 20... Nc6 {[%clk
0:01:09.1]} 21. Ne4 {[%clk 0:01:01.7]} 21... Bb6 {[%clk 0:01:01.7]} 22. Nd6+
{[%clk 0:00:58.5]} 22... Nxd6 {[%clk 0:01:01.3]} 23. exd6 {[%clk 0:00:59.4]}
23... e5 {[%clk 0:00:51.3]} 24. Nf5 {[%clk 0:00:52.4]} 24... Rhf8 {[%clk
0:00:41.4]} 25. Ne7+ {[%clk 0:00:26.5]} 25... Nxe7 {[%clk 0:00:41.1]} 26. dxe7
{[%clk 0:00:27.4]} 26... Qxe7 {[%clk 0:00:37.5]} 27. Bxe5 {[%clk 0:00:19.5]}
27... Rxf1+ {[%clk 0:00:27.8]} 28. Rxf1 {[%clk 0:00:20.4]} 28... Re8 {[%clk
0:00:19.2]} 29. Qg4+ {[%clk 0:00:20.6]} 29... Qd7 {[%clk 0:00:15.4]} 30. Qg3
{[%clk 0:00:16.5]} 30... Bc7 {[%clk 0:00:10.7]} 31. Bxc7 {[%clk 0:00:16]} 31...
Qxc7 {[%clk 0:00:11.2]} 32. Qh3+ {[%clk 0:00:16.6]} 32... Qd7 {[%clk 0:00:08.4]}
33. Qxh7 {[%clk 0:00:17]} 33... b6 {[%clk 0:00:07.2]} 34. h3 {[%clk 0:00:17.6]}
34... Kb7 {[%clk 0:00:07.2]} 35. Qg6 {[%clk 0:00:17.4]} 35... Ka6 {[%clk
0:00:06.6]} 36. Qd3+ {[%clk 0:00:15.6]} 36... Qb5 {[%clk 0:00:06.5]} 37. Qa3+
{[%clk 0:00:16.1]} 37... Qa5 {[%clk 0:00:06.1]} 38. Qg3 {[%clk 0:00:10.5]} 38...
Re2 {[%clk 0:00:03.8]} 39. Qxg7 {[%clk 0:00:10]} 39... Rxc2 {[%clk 0:00:03.5]}
40. Rf7 {[%clk 0:00:09.7]} 1-0

[Event "Early-Titled-Tuesday-Blitz-October-10-2023"]
[Site "Chess.com"]
[Date "2023.10.10"]
[Round "2"]
[White "play1ngtheangel"]
[Black "aqibjbutt"]
[Result "1/2-1/2"]
[WhiteElo "2627"]
[BlackElo "1974"]
[TimeControl "180+1"]
[EndTime "8:18:03 PDT"]
[Termination "Game drawn by agreement"]

1. e4 {[%clk 0:03:00.9]} 1... c6 {[%clk 0:02:58.6]} 2. Nc3 {[%clk 0:03:00.5]}
2... d5 {[%clk 0:02:58.1]} 3. Nf3 {[%clk 0:03:01.4]} 3... Bg4 {[%clk 0:02:55.3]}
4. h3 {[%clk 0:03:01.3]} 4... Bxf3 {[%clk 0:02:54.1]} 5. Qxf3 {[%clk 0:03:02.2]}
5... e6 {[%clk 0:02:54.6]} 6. d4 {[%clk 0:03:02.5]} 6... Nd7 {[%clk 0:02:52.3]}
7. Bd3 {[%clk 0:02:59.7]} 7... dxe4 {[%clk 0:02:51]} 8. Nxe4 {[%clk 0:02:59.6]}
8... Ngf6 {[%clk 0:02:49.8]} 9. Nd2 {[%clk 0:02:58.8]} 9... Be7 {[%clk 0:02:49]}
10. O-O {[%clk 0:02:58.5]} 10... O-O {[%clk 0:02:39.3]} 11. b3 {[%clk
0:02:58.5]} 11... e5 {[%clk 0:02:05.4]} 12. Bb2 {[%clk 0:02:42]} 12... Bd6
{[%clk 0:02:03.9]} 13. Nc4 {[%clk 0:02:39.9]} 13... Qc7 {[%clk 0:02:00.2]} 14.
Nxd6 {[%clk 0:02:38.2]} 14... Qxd6 {[%clk 0:02:01.1]} 15. Rad1 {[%clk
0:02:38.8]} 15... Rfe8 {[%clk 0:01:22.5]} 16. Qg3 {[%clk 0:02:28.1]} 16... Qb8
{[%clk 0:01:09.3]} 17. Rfe1 {[%clk 0:02:23.6]} 17... e4 {[%clk 0:01:04.3]} 18.
Qxb8 {[%clk 0:02:24.5]} 18... Raxb8 {[%clk 0:01:03.6]} 19. Bf1 {[%clk
0:02:23.4]} 19... Nd5 {[%clk 0:01:00]} 20. c4 {[%clk 0:02:23.1]} 20... Nf4
{[%clk 0:00:54]} 21. g3 {[%clk 0:02:23.1]} 21... Ng6 {[%clk 0:00:53.3]} 22. d5
{[%clk 0:02:22.8]} 22... cxd5 {[%clk 0:00:51.2]} 23. Rxd5 {[%clk 0:02:22.5]}
23... Nde5 {[%clk 0:00:47.5]} 24. Re3 {[%clk 0:02:16.8]} 24... f5 {[%clk
0:00:42.5]} 25. h4 {[%clk 0:02:14.6]} 25... Ng4 {[%clk 0:00:41.1]} 26. Re1
{[%clk 0:02:12.5]} 26... N6e5 {[%clk 0:00:38.8]} 27. Bxe5 {[%clk 0:02:09.5]}
27... Nxe5 {[%clk 0:00:39.7]} 28. Bg2 {[%clk 0:02:09.9]} 28... Nd3 {[%clk
0:00:36.6]} 29. Re3 {[%clk 0:02:07.5]} 29... g6 {[%clk 0:00:35.9]} 30. h5 {[%clk
0:01:58]} 30... Rbd8 {[%clk 0:00:34.6]} 31. hxg6 {[%clk 0:01:57.8]} 31... hxg6
{[%clk 0:00:34]} 32. g4 {[%clk 0:01:58]} 32... Rxd5 {[%clk 0:00:33.2]} 33. cxd5
{[%clk 0:01:58.9]} 33... Rd8 {[%clk 0:00:32.8]} 34. gxf5 {[%clk 0:01:56]} 34...
gxf5 {[%clk 0:00:33.1]} 35. f3 {[%clk 0:01:56.6]} 35... Nf4 {[%clk 0:00:29]} 36.
fxe4 {[%clk 0:01:55.9]} 36... Nxg2 {[%clk 0:00:28.6]} 37. Rg3+ {[%clk
0:01:35.4]} 37... Kf7 {[%clk 0:00:28.6]} 38. Kxg2 {[%clk 0:01:35.5]} 38... fxe4
{[%clk 0:00:28.9]} 39. Rg5 {[%clk 0:01:36.2]} 39... Kf6 {[%clk 0:00:28.3]} 40.
Rh5 {[%clk 0:01:36.7]} 40... Rc8 {[%clk 0:00:25.2]} 41. Kg3 {[%clk 0:01:34.8]}
41... Rc2 {[%clk 0:00:24.2]} 42. Kf4 {[%clk 0:01:33.8]} 42... Rxa2 {[%clk
0:00:24.7]} 43. Rh6+ {[%clk 0:01:27]} 43... Kg7 {[%clk 0:00:23.6]} 44. Rd6
{[%clk 0:01:24.6]} 44... Re2 {[%clk 0:00:22.8]} 45. Rd7+ {[%clk 0:01:24.6]}
45... Kf6 {[%clk 0:00:23.4]} 46. Rxb7 {[%clk 0:01:25.3]} 46... Re1 {[%clk
0:00:23.6]} 47. Rxa7 {[%clk 0:01:22.9]} 47... e3 {[%clk 0:00:22]} 48. Ra6+
{[%clk 0:01:17.9]} 48... Kf7 {[%clk 0:00:22]} 49. Re6 {[%clk 0:00:59.9]} 49...
e2 {[%clk 0:00:20.4]} 50. Kf3 {[%clk 0:00:59.4]} 50... Rb1 {[%clk 0:00:18.4]}
51. Rxe2 {[%clk 0:00:57.8]} 51... Rxb3+ {[%clk 0:00:18.6]} 52. Kf4 {[%clk
0:00:58.5]} 52... Rd3 {[%clk 0:00:17.7]} 53. Ke4 {[%clk 0:00:55.8]} 53... Rd1
{[%clk 0:00:17.7]} 54. Ra2 {[%clk 0:00:50.2]} 54... Ke7 {[%clk 0:00:17.5]} 55.
Ra7+ {[%clk 0:00:50.4]} 55... Kd6 {[%clk 0:00:18.1]} 56. Ra6+ {[%clk 0:00:51.1]}
56... Kd7 {[%clk 0:00:18.4]} 57. Ke5 {[%clk 0:00:50.5]} 57... Re1+ {[%clk
0:00:18.4]} 58. Kd4 {[%clk 0:00:51]} 58... Rd1+ {[%clk 0:00:19]} 59. Kc4 {[%clk
0:00:51.7]} 59... Rc1+ {[%clk 0:00:19.6]} 60. Kb3 {[%clk 0:00:52.5]} 60... Rb1+
{[%clk 0:00:20.3]} 61. Kc2 {[%clk 0:00:52.8]} 61... Rb5 {[%clk 0:00:20.3]} 62.
d6 {[%clk 0:00:50.7]} 62... Rd5 {[%clk 0:00:19.8]} 1/2-1/2